bitfinex/quotes_ETHUSD_20260302
["timestamp","ask_amount","ask_price","bid_price","bid_amount"]
[1772446829165,4.59852904,1949.8,1949.4,0.0011]
[1772446830285,5.88077759,1949.7,1949.6,0.0011]
[1772446832089,1.28224855,1949.7,1949.6,0.0011]
[1772446832255,5.12882535,1949.8,1949.6,0.0011]
[1772446832455,4.59852904,1949.9,1949.6,0.0011]
[1772446832685,5.12830819,1950.0,1949.6,0.0011]
[1772446834361,5.12830819,1950.0,1949.6,4.3701145]
[1772446835074,5.88058032,1950.0,1949.5,1.28347412]
[1772446835273,5.88058032,1950.0,1949.6,4.3690145]
[1772446835474,1.28205128,1950.0,1949.6,4.3690145]
[1772446835668,1.28304,1950.1,1949.6,4.3690145]
[1772446837600,1.28304,1950.1,1949.7,4.3690145]
[1772446839022,0.001,1950.1,1949.7,4.3690145]
[1772446840127,0.001,1950.5,1949.8,4.3690145]
[1772446840304,0.001,1950.5,1950.2,4.3690145]
[1772446840497,0.001,1950.5,1950.1,1.57936839]
[1772446840498,4.59852904,1950.4,1949.5,5.65243768]
[1772446840702,4.59852904,1950.4,1949.7,4.3690145]
[1772446842594,5.88038311,1950.3,1949.7,4.3690145]
[1772446842999,5.88038311,1950.3,1949.6,0.0011]
[1772446843000,0.001,1950.0,1949.6,0.0011]
[1772446843607,0.001,1950.0,1949.6,4.3701145]
[1772446844939,1.28305128,1950.0,1949.6,4.3701145]
[1772446845740,5.88158032,1950.0,1949.6,0.0011]
[1772446845943,4.59852904,1949.9,1949.6,0.0011]
[1772446847044,1.28218278,1949.8,1949.6,0.0011]
[1772446849941,1.28214407,1949.9,1949.6,4.2915626]
[1772446851730,5.12922983,1950.0,1949.6,4.2915626]
[1772446852556,0.001,1950.0,1949.7,4.2904626]
[1772446853059,1.28197198,1950.2,1949.7,4.2904626]
[1772446853758,1.28197198,1950.2,1949.8,4.2904626]
[1772446854565,1.28190584,1950.3,1949.8,4.2904626]
[1772446855956,0.001,1950.5,1949.9,4.2904626]
[1772446856164,0.001,1950.5,1950.1,4.2904626]
[1772446856737,0.001,1950.8,1950.0,1.57936839]
[1772446856935,0.001,1950.9,1950.3,4.2904626]
[1772446858777,0.001,1950.9,1950.4,1.28178835]
[1772446858951,0.00153886,1951.0,1950.6,4.2904626]
[1772446860079,4.38926759,1951.0,1950.4,4.2904626]
[1772446860260,1.57936839,1950.8,1950.0,5.5404626]
[1772446860566,4.38772873,1950.7,1950.0,4.2904626]
[1772446860756,5.66938565,1950.6,1950.0,4.2904626]
[1772446861174,1.28165692,1950.6,1950.1,4.2904626]
[1772446861352,1.28164414,1950.7,1950.1,4.2904626]
[1772446861972,5.66930778,1950.8,1950.1,4.2904626]
[1772446862172,1.28157905,1950.8,1950.1,4.2904626]
[1772446862379,1.28149594,1950.9,1950.1,4.2904626]
[1772446862958,9.5148983,1951.0,1950.3,4.2904626]
[1772446862959,0.00153886,1951.0,1950.3,4.2904626]
[1772446863165,1.28121069,1951.3,1950.2,3.4921164]
[1772446863166,1.28211131,1951.5,1950.6,4.2904626]
[1772446863581,0.001,1951.5,1950.6,4.2904626]
[1772446863783,0.001,1951.5,1950.9,4.2904626]
[1772446864881,0.001,1951.5,1951.1,4.2904626]
[1772446866787,1.28232661,1952.0,1951.1,4.2904626]
[1772446867089,0.00153886,1952.0,1951.3,4.2904626]
[1772446867399,0.00153886,1952.0,1951.4,4.2904626]
[1772446867562,1.28056829,1952.3,1951.5,4.2904626]
[1772446867766,5.66829702,1952.3,1951.5,4.2904626]
[1772446868087,5.66829702,1952.3,1951.2,1.28126281]
[1772446868088,4.38772873,1952.2,1951.3,4.2904626]
[1772446868400,1.28056829,1952.3,1951.1,4.2904626]
[1772446868401,4.38772873,1952.0,1951.1,4.2904626]
[1772446868567,4.38772873,1952.0,1951.0,0.00153886]
[1772446869195,4.38772873,1951.8,1951.0,1.28293205]
[1772446869364,4.38772873,1951.8,1951.1,4.2904626]
[1772446871285,1.28093456,1951.7,1951.1,5.57173704]
[1772446872473,3.97470358,1951.6,1951.0,0.00153886]
[1772446872677,3.97470358,1951.5,1951.0,0.00153886]
[1772446872993,3.97470358,1951.2,1950.3,4.14238448]
[1772446873698,3.97470358,1951.0,1950.2,0.0011]
[1772446873877,3.97470358,1950.9,1950.2,0.0011]
[1772446874872,2.2101966,1951.0,1950.2,0.0011]
[1772446874873,3.97470358,1950.6,1950.2,0.0011]
[1772446875401,3.97470358,1950.6,1950.0,0.00263886]
[1772446875581,3.97470358,1950.4,1950.0,0.00263886]
[1772446875776,3.97470358,1950.3,1949.7,0.0011]
[1772446879375,5.2751775,1950.2,1949.8,0.0011]
[1772446881232,2.2101966,1950.7,1949.8,4.00678515]
[1772446881233,3.9932577,1950.7,1949.8,4.00678515]
[1772446881421,1.28165692,1950.6,1949.9,5.28780218]
[1772446881931,5.27491462,1950.6,1949.9,4.00568515]
[1772446882302,3.9932577,1950.5,1949.9,4.00568515]
[1772446883410,1.28169261,1950.6,1949.9,5.28774304]
[1772446883603,1.28251311,1950.9,1950.0,4.00568515]
[1772446884713,0.001,1950.9,1950.3,4.00568515]
[1772446885532,0.001,1950.9,1950.2,4.00568515]
[1772446885749,3.9942577,1950.9,1950.2,5.28758922]
[1772446885905,0.001,1950.9,1950.3,4.00568515]
[1772446887646,0.001,1950.9,1950.4,5.2874735]
[1772446891225,0.001,1950.8,1950.4,5.2874735]
[1772446892370,0.001,1950.8,1950.5,4.00568515]
[1772446894444,0.001,1950.8,1950.6,1.28165692]
[1772446894639,0.001,1950.8,1950.5,5.28737622]
[1772446898854,0.001,1950.8,1950.5,4.00568515]
[1772446899359,0.001,1950.8,1950.5,5.28740449]
[1772446899878,0.001,1950.8,1950.5,4.00568515]
[1772446900176,0.001,1950.8,1950.5,5.28740335]
[1772446900343,0.001,1950.8,1950.6,4.00568515]
[1772446900344,25.74514757,1950.8,1950.6,4.00568515]
[1772446901248,25.74514757,1950.8,1950.6,5.2873291]
[1772446901478,25.74514757,1950.8,1950.6,1.28164395]
[1772446901776,25.74514757,1950.8,1950.5,1.28166951]
[1772446903254,0.001,1950.7,1950.5,1.28166951]
[1772446904060,0.001,1950.7,1950.5,3.88320874]
[1772446906876,5.27441506,1951.4,1950.7,2.58755662]
[1772446907076,3.9932577,1951.4,1950.7,2.58755662]
[1772446907401,3.93056303,1951.3,1950.7,2.58755662]
[1772446907587,3.93056303,1951.2,1950.7,3.86909419]
[1772446907757,3.93056303,1951.2,1950.6,1.28162512]
[1772446907952,3.93056303,1951.2,1950.4,1.28174412]
[1772446909861,3.93056303,1951.0,1950.4,1.28174412]
[1772446910076,3.93056303,1951.0,1950.3,3.86696816]
[1772446911799,3.93056303,1950.8,1950.3,3.86696816]
[1772446913919,3.93056303,1951.1,1950.4,3.30659592]
[1772446915127,3.93056303,1951.1,1950.4,3.30769592]
[1772446915931,3.93056303,1951.1,1950.5,1.28172263]
[1772446916136,3.93056303,1951.1,1950.5,4.57566644]
[1772446916337,0.001,1951.2,1950.6,3.29394381]
[1772446918011,0.001,1951.2,1950.8,3.28132115]
[1772446919533,3.93056303,1951.7,1950.8,3.26869805]
[1772446919702,5.21137426,1951.9,1950.8,3.26869805]
[1772446919905,3.93056303,1951.9,1950.8,3.26869805]
[1772446920148,3.93056303,1951.9,1951.0,3.26869805]
[1772446920447,3.93056303,1951.9,1951.2,3.26869805]
[1772446920634,0.00153886,1952.0,1951.3,3.26237364]
[1772446920833,1.28228762,1952.0,1951.3,3.26237364]
[1772446921009,3.93056303,1951.9,1951.3,3.26237364]
[1772446922338,3.93056303,1951.9,1951.4,4.537192]
[1772446922543,0.00153886,1952.0,1951.4,4.537192]
[1772446922544,0.00153886,1952.0,1951.5,3.2497902]
[1772446922747,0.00153886,1952.0,1951.7,3.2497902]
[1772446924236,0.00153886,1952.0,1951.8,4.52433627]
[1772446925247,0.00153886,1952.0,1951.8,1.28086894]
[1772446925539,0.00153886,1952.0,1951.6,6.69976828]
[1772446925540,0.00153886,1952.0,1951.6,5.12387477]
[1772446925740,0.00153886,1952.0,1951.6,8.3547287]
[1772446926641,3.93056303,1952.5,1951.3,3.22301438]
[1772446926842,6.40202936,1952.8,1952.2,3.22301438]
[1772446927146,3.93056303,1952.6,1951.8,3.22301438]
[1772446927645,4.95877574,1952.5,1952.3,3.21675888]
[1772446927829,8.88933877,1952.8,1952.2,1.57589177]
[1772446928019,8.88933877,1952.8,1952.1,3.21675888]
[1772446928020,3.93056303,1952.7,1952.1,3.21675888]
[1772446928225,8.88933877,1952.7,1952.1,3.21675888]
[1772446928823,8.88933877,1952.7,1952.2,1.28060649]
[1772446929225,4.95877574,1952.6,1952.2,4.72194807]
[1772446929446,0.00153886,1953.0,1952.5,3.44134158]
[1772446929621,0.00153886,1953.0,1952.7,3.43449597]
[1772446929964,3.93210189,1953.0,1952.5,3.43449597]
[1772446930253,3.93056303,1952.9,1952.0,5.12283944]
[1772446930560,3.93056303,1952.8,1951.8,5.12346875]
[1772446930860,3.93056303,1952.6,1951.8,5.12346875]
[1772446931058,3.93056303,1952.6,1951.8,8.69699652]
[1772446933028,1.28039642,1952.6,1951.8,8.69699652]
[1772446933229,4.75153223,1952.5,1951.8,8.69699652]
[1772446933684,4.75153223,1952.7,1952.0,3.55326336]
[1772446934561,4.75153223,1952.5,1951.7,1.28088558]
[1772446935434,4.75153223,1952.4,1951.7,3.53881656]
[1772446935634,1.28037184,1952.6,1951.7,3.53881656]
[1772446935833,6.03190407,1952.6,1951.7,3.53881656]
[1772446936175,4.75153223,1952.6,1951.9,3.53881656]
[1772446936367,4.75153223,1952.8,1952.2,1.57589177]
[1772446936565,1.28167024,1953.0,1952.2,5.10746438]
[1772446936737,4.75153223,1952.9,1952.2,3.53157261]
[1772446937651,4.70551777,1952.8,1952.3,1.2805409]
[1772446940381,4.70651777,1952.8,1952.3,1.2805409]
[1772446940977,0.001,1952.8,1952.3,4.78456192]
[1772446941468,0.001,1952.8,1952.4,3.50402102]
[1772446941649,0.001,1952.8,1952.5,1.28040973]
[1772446942042,0.001,1952.8,1952.5,4.7772115]
[1772446942242,30.00153886,1953.0,1952.6,3.49680177]
[1772446942943,4.70551777,1952.9,1952.0,8.6117137]
[1772446943141,4.70551777,1952.9,1952.1,1.28067209]
[1772446943743,5.98571137,1952.9,1952.1,1.28067209]
[1772446943943,4.70551777,1952.8,1952.1,1.28067209]
[1772446944177,4.70551777,1952.8,1952.1,4.76307573]
[1772446945482,4.70551777,1952.8,1952.2,3.47521081]
[1772446945651,4.70551777,1952.8,1952.2,5.05110258]
[1772446946053,4.70551777,1952.8,1952.3,1.2805409]
[1772446947262,34.70705663,1953.0,1952.3,1.2805409]
[1772446947464,4.70551777,1952.9,1952.3,1.2805409]
[1772446949383,4.70551777,1952.8,1952.3,1.2805409]
[1772446949950,4.70551777,1952.8,1952.2,1.25]
[1772446950151,4.70551777,1952.6,1952.2,1.25]
[1772446950352,4.70551777,1952.6,1952.1,1.28062028]
[1772446951780,4.70551777,1952.6,1952.0,1.28068506]
[1772446952374,4.70551777,1952.6,1951.8,1.28086894]
[1772446952375,4.70551777,1952.4,1951.8,1.28086894]
[1772446952577,4.70551777,1952.4,1952.3,0.0011]
[1772446955654,5.98599308,1952.4,1952.3,0.0011]
[1772446955861,4.70551777,1952.4,1952.3,0.0011]
[1772446956582,1.28046295,1952.4,1952.3,0.0011]
[1772446956782,4.70551777,1952.7,1952.3,0.0011]
[1772446960979,0.001,1952.8,1952.3,4.42891805]
[1772446962191,30.00153886,1953.0,1952.4,4.42781805]
[1772446962386,4.70551777,1952.9,1952.3,0.0011]
[1772446962764,4.70551777,1952.9,1952.3,5.70945895]
[1772446963390,4.70551777,1952.9,1952.4,4.42781805]
[1772446963793,4.70551777,1953.4,1952.6,4.42781805]
[1772446964095,4.70551777,1953.3,1952.3,1.2816409]
[1772446964891,4.70551777,1953.1,1952.3,4.42891805]
[1772446965197,4.70551777,1953.0,1952.3,0.0011]
[1772446965967,4.70551777,1953.0,1952.4,0.0011]
[1772446971722,1.28014747,1952.9,1952.4,0.0011]
[1772446971913,4.86545823,1952.8,1952.4,0.0011]
[1772446974792,6.14573681,1952.7,1952.4,0.0011]
[1772446975621,6.14573681,1952.7,1952.0,0.00263886]
[1772446975622,1.57589177,1952.5,1952.0,0.00263886]
[1772446975819,4.86545823,1952.4,1952.0,0.00263886]
[1772446978199,6.14599913,1952.3,1952.0,0.00263886]
[1772446978400,1.28051581,1952.4,1952.0,0.00263886]
[1772446978599,6.14597404,1952.4,1952.0,0.00263886]
[1772446979723,4.86545823,1952.4,1952.0,0.00263886]
[1772446980208,4.86545823,1952.4,1952.2,0.0011]
[1772446980426,6.14593535,1952.4,1952.2,0.0011]
[1772446981000,4.86545823,1952.3,1952.0,0.00263886]
[1772446981709,4.86545823,1952.2,1951.4,4.77952548]
[1772446981928,4.86545823,1952.2,1951.5,1.28106261]
[1772446982301,6.14610219,1952.2,1951.7,1.28093456]
[1772446982502,5.12164619,1952.5,1951.7,1.28093456]
[1772446982503,6.14598077,1952.4,1951.8,4.77952548]
[1772446982725,4.86545823,1952.4,1951.8,4.77952548]
[1772446986326,4.86545823,1952.4,1951.9,1.28080331]
[1772446986524,4.86545823,1952.3,1951.8,1.28081461]
[1772446986703,4.86545823,1952.3,1951.7,5.12359557]
[1772446987217,6.14592156,1952.5,1951.8,4.77952548]
[1772446988536,6.14592156,1952.5,1951.9,6.06032879]
[1772446990129,4.86545823,1952.4,1951.8,1.2808147]
[1772446990909,6.14596205,1952.4,1951.8,6.06034018]
[1772446991512,4.86545823,1952.3,1951.8,6.06034018]
[1772446992134,4.86545823,1952.3,1951.9,0.0011]
[1772446993241,0.001,1952.4,1951.9,4.98497014]
[1772446993919,4.68762257,1952.4,1951.9,4.98497014]
[1772446994441,5.96809988,1952.4,1951.9,4.98497014]
[1772446994926,0.001,1952.4,1951.9,4.98497014]
[1772446995438,4.68762257,1952.4,1952.0,1.2807377]
[1772446997539,4.67093235,1952.3,1951.9,0.0011]
[1772446997846,4.67093235,1952.3,1951.9,1.28189624]
[1772446999255,4.67093235,1952.3,1951.9,6.32805326]
[1772447000139,0.001,1952.4,1952.0,5.04615702]
[1772447000553,4.67193235,1952.4,1952.0,5.04615702]
[1772447000935,0.001,1952.4,1952.0,5.04615702]
[1772447001127,5.95119162,1952.8,1952.0,5.04615702]
[1772447002252,5.95119162,1952.8,1952.2,5.04615702]
[1772447002253,4.67093235,1952.8,1952.2,5.04615702]
[1772447002652,0.001,1952.9,1952.2,5.04615702]
[1772447002859,1.28115335,1952.9,1952.2,5.04615702]
[1772447003160,0.001,1952.9,1952.2,5.04615702]
[1772447004221,5.11930883,1953.4,1952.2,5.04615702]
[1772447004222,5.95075265,1953.4,1952.7,5.04615702]
[1772447004729,4.67093235,1953.3,1952.7,5.04615702]
[1772447006275,4.67093235,1953.1,1952.4,5.12166185]
[1772447006471,4.67093235,1953.1,1952.4,10.16781887]
[1772447006971,5.950805,1953.4,1952.5,5.04615702]
[1772447007171,4.67093235,1953.4,1952.5,5.04615702]
[1772447008060,5.95075526,1953.4,1952.5,5.04615702]
[1772447008573,1.27980153,1953.5,1952.7,5.04615702]
[1772447008939,5.95073388,1953.5,1952.7,5.04615702]
[1772447010053,4.67093235,1953.4,1952.7,5.04615702]
[1772447010668,5.95078042,1953.4,1952.8,6.32637004]
[1772447011973,4.67093235,1953.3,1952.8,5.04615702]
[1772447012169,4.67093235,1953.3,1952.6,1.28034377]
[1772447012474,4.67093235,1953.3,1952.3,2.53052407]
[1772447012656,4.67093235,1953.3,1952.3,1.28052407]
[1772447012975,4.67093235,1953.1,1952.3,1.28052407]
[1772447014870,4.67093235,1952.9,1952.3,1.28052407]
[1772447015960,4.67093235,1952.9,1952.4,5.04615702]
[1772447017880,5.95109942,1952.9,1952.4,6.32768423]
[1772447020585,4.67093235,1952.8,1952.4,6.32768423]
[1772447021358,4.67093235,1952.8,1952.3,0.0011]
[1772447022863,5.95121093,1952.7,1952.3,0.0011]
[1772447023071,4.67093235,1952.9,1952.3,5.04725702]
[1772447023274,5.95107472,1953.0,1952.3,5.04725702]
[1772447024982,0.001,1953.2,1952.5,5.04615702]
[1772447024983,4.67193235,1953.2,1952.5,5.04615702]
[1772447026991,4.67093235,1953.0,1952.3,7.57775465]
[1772447027188,4.67093235,1953.0,1952.3,0.0011]
[1772447030086,1.28014747,1952.9,1952.3,0.0011]
[1772447030293,4.65681012,1952.8,1952.3,0.0011]
[1772447031082,4.65681012,1952.8,1952.4,0.0011]
[1772447034694,5.9370887,1952.7,1952.4,0.0011]
[1772447036869,4.65681012,1952.6,1952.4,0.0011]
[1772447037273,4.65681012,1952.6,1952.1,0.0011]
[1772447038988,4.65681012,1952.4,1952.1,0.0011]
[1772447042801,4.65681012,1952.3,1952.1,0.0011]
[1772447043676,5.93735102,1952.3,1952.2,0.0011]
[1772447044273,1.2805409,1952.3,1952.0,0.00263886]
[1772447044580,4.65681012,1952.2,1951.8,0.0011]
[1772447045497,4.65681012,1952.2,1951.7,0.0011]
[1772447045803,4.65681012,1952.1,1951.7,0.0011]
[1772447048477,5.93754782,1952.0,1951.7,0.0011]
[1772447049580,4.65681012,1952.0,1951.7,0.0011]
[1772447050306,6.25267287,1952.2,1951.7,4.71942814]
[1772447050509,5.9374536,1952.2,1951.7,6.000312]
[1772447050800,5.93732417,1952.4,1951.8,4.71832814]
[1772447050989,4.65681012,1952.3,1951.9,5.03354741]
[1772447051310,5.93727148,1952.5,1951.9,5.03354741]
[1772447051481,4.65681012,1952.4,1951.9,5.03354741]
[1772447051682,4.65681012,1952.4,1951.9,4.71832814]
[1772447052177,4.65681012,1952.1,1951.7,0.0011]
[1772447052396,4.65681012,1952.1,1951.3,6.3158086]
[1772447052397,4.97202939,1951.8,1951.3,0.0011]
[1772447052604,4.65681012,1951.7,1951.3,4.71942814]
[1772447053479,4.85187234,1952.1,1951.3,4.71942814]
[1772447055991,6.13261004,1952.0,1951.4,5.79244395]
[1772447056399,1.2807377,1952.0,1951.4,5.79244395]
[1772447056708,4.85187234,1951.9,1951.4,0.0011]
[1772447058120,5.89793637,1952.1,1951.4,4.76028335]
[1772447058288,4.61722583,1952.0,1951.4,4.76028335]
[1772447059399,4.61722583,1952.0,1951.4,0.0011]
[1772447059625,4.61722583,1951.8,1951.2,0.0011]
[1772447059840,4.61722583,1951.8,1950.6,4.75918335]
[1772447059841,4.61722583,1951.2,1950.6,4.75918335]
[1772447060286,1.28132848,1951.1,1950.6,6.0408326]
[1772447060483,5.89854113,1951.2,1950.6,6.0408326]
[1772447060706,4.61722583,1951.2,1950.6,6.0408326]
[1772447060907,5.89849422,1951.2,1950.6,6.0408326]
[1772447061500,5.89849422,1951.2,1950.6,1.28164925]
[1772447061699,5.89849422,1951.2,1950.7,4.75918335]
[1772447062221,4.61722583,1951.2,1950.7,4.75918335]
[1772447062393,4.61722583,1951.2,1950.8,4.75918335]
[1772447062917,5.89849675,1951.2,1950.8,4.75918335]
[1772447063603,5.89849675,1951.2,1950.7,1.28152576]
[1772447063798,1.28127092,1951.2,1950.6,6.04079245]
[1772447064000,4.61722583,1951.1,1950.6,6.04079245]
[1772447065301,4.61722583,1951.5,1950.9,4.75918335]
[1772447065507,1.28102538,1951.6,1950.9,4.75918335]
[1772447065708,5.89825121,1951.6,1950.9,4.75918335]
[1772447066501,4.61722583,1951.5,1950.9,4.75918335]
[1772447067192,4.61722583,1951.5,1951.0,6.0405775]
[1772447070587,5.89829789,1951.5,1951.0,6.0405775]
[1772447070817,4.61722583,1951.4,1950.9,1.28143047]
[1772447071021,4.61722583,1951.4,1950.9,6.04061382]
[1772447071597,4.61722583,1951.4,1951.0,4.75918335]
[1772447072118,4.61722583,1951.4,1950.9,1.28143047]
[1772447072625,4.61722583,1951.4,1950.9,6.04061382]
[1772447072800,4.61722583,1951.4,1951.0,4.75918335]
[1772447072997,4.61722583,1951.6,1951.0,4.75918335]
[1772447073222,5.89911675,1951.8,1951.0,4.75918335]
[1772447073417,4.61722583,1951.7,1951.0,4.75918335]
[1772447074816,4.61722583,1951.5,1951.1,1.28132848]
[1772447075124,4.61722583,1951.7,1951.2,4.75918335]
[1772447076827,5.89817409,1951.7,1951.2,6.04039197]
[1772447078711,4.61722583,1951.6,1951.2,6.04039197]
[1772447079329,5.89826194,1951.6,1951.2,4.75918335]
[1772447079529,4.61722583,1951.5,1950.8,7.29065718]
[1772447079831,4.61722583,1951.5,1950.8,6.04065718]
[1772447080814,4.61722583,1951.5,1951.0,0.0011]
[1772447082940,5.89835732,1951.4,1951.0,0.0011]
[1772447083127,5.89835732,1951.4,1951.0,4.76028335]
[1772447084842,1.28111772,1951.5,1951.0,4.76028335]
[1772447085048,5.89926252,1951.6,1951.1,6.04051183]
[1772447085215,1.28203669,1951.6,1951.1,6.04051183]
[1772447085423,4.61722583,1951.5,1951.1,6.04051183]
[1772447086648,4.61722583,1951.5,1951.1,1.28132848]
[1772447086844,4.61722583,1951.5,1951.1,6.04051183]
[1772447087225,0.001,1951.6,1951.2,4.31119576]
[1772447087731,5.7807918,1951.6,1951.2,4.31119576]
[1772447088054,4.49979132,1951.6,1951.2,4.31119576]
[1772447088545,5.78079723,1951.6,1951.2,4.31119576]
[1772447088746,4.49879132,1951.5,1951.0,5.59363556]
[1772447089119,4.49879132,1951.3,1951.0,0.0011]
[1772447091122,5.78000777,1951.3,1951.0,0.0011]
[1772447092350,4.49879132,1951.2,1951.0,0.0011]
[1772447093234,1.28129744,1951.2,1951.0,0.0011]
[1772447093438,4.49879132,1951.1,1951.0,0.0011]
[1772447093637,1.28129744,1951.2,1951.0,0.0011]
[1772447093956,4.49979132,1951.6,1951.1,4.31119576]
[1772447094336,0.001,1951.6,1951.1,4.31119576]
[1772447094847,4.49979132,1951.8,1951.3,4.31119576]
[1772447094848,0.001,1951.8,1951.3,4.31119576]
[1772447095551,0.001,1951.8,1951.5,4.31119576]
[1772447096851,4.49979132,1952.9,1951.8,4.31119576]
[1772447097044,0.001,1952.8,1952.4,5.88823739]
[1772447097238,0.001,1952.8,1952.4,4.31119576]
[1772447097455,0.00153886,1953.0,1952.5,5.59160549]
[1772447097631,4.49879132,1953.3,1952.6,4.31119576]
[1772447099351,4.49879132,1953.3,1952.7,1.28027858]
[1772447100565,4.49979132,1953.2,1952.5,1.28036201]
[1772447100781,4.49979132,1953.2,1951.9,1.79206262]
[1772447100782,4.49879132,1953.1,1952.0,5.12446415]
[1772447100952,4.49879132,1952.6,1952.0,0.00153886]
[1772447101436,4.49879132,1952.4,1952.0,0.00153886]
[1772447103733,5.77926865,1952.4,1952.0,0.00153886]
[1772447104531,0.001,1952.3,1952.0,0.00153886]
[1772447104932,4.49979132,1952.3,1952.0,0.00153886]
[1772447105154,6.07683295,1952.3,1951.4,5.59229656]
[1772447105347,4.49879132,1952.2,1951.4,5.59229656]
[1772447106227,1.28067209,1952.1,1951.4,5.59229656]
[1772447106434,5.77946341,1952.1,1951.4,5.59229656]
[1772447107347,4.49879132,1952.0,1951.2,1.28120732]
[1772447108330,4.49879132,1951.8,1951.1,5.59357181]
[1772447109137,4.49879132,1951.8,1951.1,5.59362272]
[1772447109358,4.49879132,1951.8,1951.1,0.0011]
[1772447109563,4.49879132,1951.7,1951.1,0.0011]
[1772447110280,4.49879132,1951.5,1951.1,0.0011]
[1772447112181,4.49879132,1951.5,1950.8,0.0011]
[1772447112476,4.49879132,1951.3,1950.8,0.0011]
[1772447116450,4.49879132,1951.3,1950.9,0.0011]
[1772447116649,8.23645867,1951.8,1950.9,4.41244572]
[1772447116952,4.40945466,1951.7,1950.9,4.41244572]
[1772447118894,5.69045306,1951.7,1951.0,1.28139415]
[1772447119086,5.69045306,1951.7,1951.0,5.57613689]
[1772447120202,4.30143845,1951.6,1951.0,1.28139415]
[1772447120372,4.30143845,1951.6,1950.9,1.28251279]
[1772447120690,4.30143845,1951.6,1950.9,0.0011]
[1772447120889,4.30143845,1951.4,1950.9,0.0011]
[1772447123374,5.5826356,1951.3,1950.9,0.0011]
[1772447123697,4.30143845,1951.2,1950.9,0.0011]
[1772447125297,5.58270593,1951.2,1950.9,0.0011]
[1772447126871,5.58270593,1951.2,1950.7,5.57738552]
[1772447126872,4.30143845,1951.1,1950.7,0.0011]
[1772447127074,4.30143845,1951.1,1950.4,0.0011]
[1772447127396,4.30143845,1950.9,1950.4,0.0011]
[1772447128587,4.30143845,1950.7,1950.1,0.0011]
[1772447129389,4.30143845,1950.5,1950.1,0.0011]
[1772447131498,5.5832268,1950.4,1950.1,0.0011]
[1772447131706,4.30143845,1950.3,1950.1,0.0011]
[1772447132407,4.30143845,1950.3,1949.9,0.0011]
[1772447133808,4.30143845,1950.3,1949.7,1.28334331]
[1772447133809,4.30143845,1950.1,1949.7,0.0011]
[1772447135904,4.30143845,1950.1,1949.7,1.28334855]
[1772447136203,4.30143845,1950.3,1949.7,5.57809129]
[1772447136461,5.58329881,1950.3,1949.7,5.57809129]
[1772447136793,4.30143845,1950.6,1949.8,4.29474274]
[1772447137288,1.28159122,1950.7,1949.9,4.29474274]
[1772447137892,5.58302967,1950.7,1949.9,4.29474274]
[1772447138198,5.58302967,1950.7,1950.0,5.57679402]
[1772447138386,4.30143845,1950.6,1950.0,5.57679402]
[1772447140682,1.28166045,1950.6,1950.1,4.29474274]
[1772447141715,5.58440897,1951.0,1950.1,4.29474274]
[1772447142087,5.58440897,1951.0,1950.2,4.29474274]
[1772447142283,0.00153886,1951.0,1950.2,4.29474274]
[1772447142711,0.00153886,1951.0,1950.4,4.29474274]
[1772447145814,0.00153886,1951.0,1950.4,5.57648056]
[1772447146913,0.00153886,1951.0,1950.5,4.29474274]
[1772447147995,4.26747186,1951.0,1950.0,6.81037363]
[1772447148198,4.26747186,1951.0,1950.0,5.56037363]
[1772447148492,4.26747186,1951.0,1950.1,4.2783782]
[1772447150716,4.265933,1950.8,1949.9,4.2794782]
[1772447154025,1.28159122,1950.7,1950.1,4.2783782]
[1772447155021,5.54752422,1950.7,1950.1,4.2783782]
[1772447157416,4.266933,1950.9,1950.0,5.56147811]
[1772447157726,4.266933,1950.9,1950.0,0.0011]
[1772447157727,4.265933,1950.6,1950.0,0.0011]
[1772447158533,4.265933,1950.6,1949.8,0.0011]
[1772447158534,4.265933,1950.3,1949.8,0.0011]
[1772447159710,4.265933,1950.1,1949.8,0.0011]
[1772447161631,5.54794279,1950.1,1949.8,0.0011]
[1772447163535,4.265933,1950.0,1949.6,0.0011]
[1772447163702,4.265933,1949.8,1949.6,0.0011]
[1772447164200,5.12846812,1950.0,1949.6,4.2794782]
[1772447164201,4.265933,1950.0,1949.6,4.2794782]
[1772447164441,5.54789312,1950.2,1949.6,4.2794782]
[1772447164736,4.265933,1950.1,1949.6,4.2794782]
[1772447165329,4.265933,1950.1,1949.6,0.0011]
[1772447165830,4.265933,1950.1,1949.4,0.0011]
[1772447166035,5.54798428,1950.0,1949.9,0.0011]
[1772447166328,4.265933,1949.9,1949.8,0.0011]
[1772447166512,4.265933,1949.9,1949.6,0.0011]
[1772447169317,4.265933,1949.8,1949.6,0.0011]
[1772447169525,4.265933,1950.0,1949.6,0.0011]
[1772447169720,1.28198553,1950.1,1949.6,4.2794782]
[1772447170339,5.54791853,1950.1,1949.6,4.2794782]
[1772447173329,4.02101269,1950.3,1949.7,1.28224855]
[1772447173536,4.02101269,1950.3,1949.7,3.86582293]
[1772447174705,4.02101269,1950.3,1949.6,0.0011]
[1772447175409,1.2819198,1950.2,1949.6,0.0011]
[1772447175605,4.02101269,1950.1,1949.6,0.0011]
[1772447178129,4.12092545,1949.9,1949.8,0.0011]
[1772447180241,5.40304248,1949.9,1949.8,0.0011]
[1772447180937,1.28198553,1950.1,1949.8,3.91644219]
[1772447181243,5.40389406,1950.2,1949.8,3.91644219]
[1772447181470,5.40384987,1950.2,1949.8,3.91644219]
[1772447181829,4.12092545,1950.0,1949.6,0.0011]
[1772447182445,4.12092545,1949.5,1949.3,0.0011]
[1772447182739,4.12092545,1949.5,1949.1,0.0011]
[1772447184345,5.40335726,1949.5,1949.1,0.0011]
[1772447185946,4.12092545,1949.5,1949.1,0.0011]
[1772447186541,5.40332208,1949.5,1949.1,0.0011]
[1772447188139,4.12092545,1949.4,1949.1,0.0011]
[1772447188525,5.40343712,1949.3,1949.1,0.0011]
[1772447190434,5.40343712,1949.3,1949.2,0.0011]
[1772447190633,5.40343712,1949.3,1949.0,0.00153886]
[1772447191034,5.40343712,1949.3,1949.0,0.00263886]
[1772447191035,4.12092545,1949.2,1949.0,0.00263886]
[1772447192149,1.28251167,1949.3,1949.0,0.00263886]
[1772447193133,4.12092545,1949.4,1949.0,1.86158151]
[1772447193452,5.40337445,1949.4,1949.0,1.86158151]
[1772447194354,0.001,1950.0,1949.3,1.85136089]
[1772447194555,0.001,1950.0,1949.5,1.84376384]
[1772447195642,0.001,1950.0,1949.6,3.12607816]
[1772447196033,0.001,1950.0,1949.7,1.83619202]
[1772447196235,0.001,1950.2,1949.9,1.83519202]
[1772447196426,4.12092545,1950.8,1950.2,1.82765549]
[1772447198241,5.40250397,1950.8,1950.2,3.10955426]
[1772447199155,5.40245155,1950.8,1950.2,3.10955426]
[1772447200057,4.12092545,1950.7,1949.8,3.08749487]
[1772447200260,4.12092545,1950.7,1949.9,1.80531209]